bitfinex-derivatives/quotes_SOLF0:USTF0_20250714
["timestamp","ask_amount","ask_price","bid_price","bid_amount"]
[1752456973527,9.6347,162.41,162.38,3.66]
[1752456973721,3.48,162.4,162.39,3.66]
[1752456973926,9.6349,162.4,162.39,3.66]
[1752456974730,6.1553,162.39,162.37,3.66]
[1752456974932,3.48,162.38,162.37,3.66]
[1752456975335,3.48,162.38,162.37,9.816]
[1752456975533,3.48,162.39,162.38,3.66]
[1752456975734,3.48,162.38,162.37,3.66]
[1752456976031,3.48,162.38,162.35,3.66]
[1752456976544,3.48,162.37,162.36,3.66]
[1752456977436,3.48,162.38,162.37,3.66]
[1752456979035,3.48,162.43,162.38,3.66]
[1752456979237,3.48,162.43,162.39,3.66]
[1752456979837,3.48,162.43,162.36,3.00084079]
[1752456979838,3.48,162.41,162.35,3.66]
[1752456980235,6.1555,162.39,162.35,6.1565]
[1752456980437,3.48,162.37,162.36,3.66]
[1752456980838,3.48,162.42,162.34,3.66]
[1752456981035,3.00084079,162.38,162.32,3.66]
[1752456981232,3.00084079,162.38,162.25,539.17570706]
[1752456981233,3.48,162.35,162.29,135.26202461]
[1752456981440,3.48,162.34,162.31,9.818]
[1752456981738,3.48,162.33,162.32,3.66]
[1752456981931,3.48,162.33,162.3,9.8185]
[1752456982132,3.48,162.33,162.3,3.66]
[1752456982535,3.48,162.32,162.3,3.66]
[1752456982739,6.1575,162.33,162.28,3.66]
[1752456982740,3.48,162.33,162.28,3.66]
[1752456982939,6.87742739,162.38,162.25,532.3]
[1752456982940,3.48,162.31,162.25,532.3]
[1752456983142,3.48,162.31,162.27,3.66]
[1752456983641,9.6385,162.31,162.27,9.8195]
[1752456983843,3.48,162.29,162.28,3.66]
[1752456984141,3.48,162.33,162.28,3.66]
[1752456984642,9.6378,162.33,162.29,6.1589]
[1752456984842,3.48,162.32,162.29,9.8189]
[1752456985032,3.48,162.31,162.29,9.8189]
[1752456985940,3.48,162.31,162.3,6.1587]
[1752456986137,3.48,162.31,162.3,9.8187]
[1752456986339,3.48,162.31,162.26,3.00084079]
[1752456986340,3.48,162.35,162.28,3.00084079]
[1752456986539,3.48,162.35,162.29,9.819]
[1752456986846,3.48,162.33,162.29,9.819]
[1752456987038,3.48,162.31,162.27,9.8195]
[1752456987639,3.48,162.31,162.25,3.66]
[1752456987837,3.48,162.29,162.23,3.66]
[1752456988043,3.00084079,162.28,162.23,3.66]
[1752456988243,3.48,162.27,162.23,9.8211]
[1752456988547,3.48,162.25,162.19,3.66]
[1752456989038,3.48,162.22,162.2,9.8222]
[1752456989840,3.00084079,162.26,162.21,6.1621]
[1752456990038,3.48,162.25,162.22,3.66]
[1752456990440,6.1607,162.25,162.21,6.1621]
[1752456990743,3.33,162.23,162.22,6.1616]
[1752456990942,3.33,162.23,162.22,9.7116]
[1752456992441,6.1599,162.27,162.22,3.55]
[1752456992743,5.01468912,162.3,162.21,5.01468912]
[1752456992941,3.33,162.26,162.25,3.55]
[1752456993343,5.01468912,162.3,162.21,5.01468912]
[1752456993545,3.33,162.25,162.24,3.55]
[1752456994044,3.33,162.25,162.24,9.7109]
[1752456996448,3.33,162.28,162.25,9.7105]
[1752456996949,5.17140446,162.33,162.27,6.1595]
[1752456997140,3.33,162.33,162.26,3.55]
[1752456997344,3.33,162.32,162.26,3.55]
[1752456997749,3.33,162.29,162.26,9.71]
[1752456997946,3.33,162.28,162.26,9.71]
[1752456998444,6.1589,162.3,162.26,9.71]
[1752456998647,3.33,162.27,162.26,9.71]
[1752456999643,6.1583,162.31,162.26,3.55]
[1752456999848,3.33,162.28,162.27,9.7096]
[1752457001050,3.33,162.28,162.26,6.16]
[1752457001350,3.33,162.27,162.26,3.55]
[1752457001846,3.33,162.27,162.23,5.01468912]
[1752457002048,3.33,162.31,162.22,3.55]
[1752457002449,6.1597,162.28,162.24,6.1608]
[1752457002647,3.33,162.27,162.24,9.7108]
[1752457002847,3.33,162.26,162.24,3.55]
[1752457003046,3.33,162.26,162.25,3.55]
[1752457004351,3.33,162.26,162.25,9.7105]
[1752457004544,6.1597,162.28,162.21,183.99468912]
[1752457004744,3.33,162.25,162.24,9.7108]
[1752457004946,3.33,162.25,162.21,183.99468912]
[1752457005150,3.33,162.26,162.23,9.711]
[1752457005352,3.33,162.26,162.23,3.55]
[1752457005548,3.33,162.27,162.22,3.55]
[1752457005952,3.33,162.26,162.22,3.55]
[1752457006449,6.1595,162.28,162.22,3.55]
[1752457006653,3.33,162.25,162.24,6.1606]
[1752457007554,3.33,162.25,162.24,9.7106]
[1752457007756,3.33,162.28,162.25,9.7103]
[1752457007952,3.33,162.27,162.25,9.7103]
[1752457008152,3.33,162.27,162.26,3.55]
[1752457008355,3.33,162.27,162.24,6.1608]
[1752457008555,3.33,162.27,162.21,182.53]
[1752457008855,3.33,162.23,162.18,6.1631]
[1752457009058,3.33,162.23,162.15,3.55]
[1752457009355,6.1628,162.2,162.16,6.1637]
[1752457009656,5.01468912,162.22,162.16,3.55]
[1752457009856,6.1614,162.23,162.19,6.1625]
[1752457010057,3.33,162.25,162.19,9.7125]
[1752457010756,3.33,162.22,162.19,9.7125]
[1752457010954,3.33,162.21,162.2,6.1624]
[1752457011154,3.33,162.21,162.12,3.55]
[1752457011347,3.33,162.21,162.18,3.55]
[1752457011652,3.33,162.24,162.18,3.55]
[1752457011955,3.33,162.23,162.2,6.1622]
[1752457012151,179.06,162.28,162.2,3.55]
[1752457012349,3.33,162.22,162.21,3.55]
[1752457013156,3.33,162.22,162.21,9.7118]
[1752457014954,3.33,162.24,162.22,3.55]
[1752457015154,3.33,162.23,162.22,3.55]
[1752457015354,3.33,162.23,162.18,3.55]
[1752457015550,3.33,162.23,162.17,3.00922847]
[1752457015756,6.1624,162.21,162.17,6.1634]
[1752457015962,3.33,162.2,162.14,3.00922847]
[1752457016261,6.1631,162.19,162.15,6.1643]
[1752457016461,3.33,162.18,162.15,6.1643]
[1752457016662,3.33,162.18,162.11,182.04922847]
[1752457016863,3.33,162.16,162.13,6.1649]
[1752457017263,3.33,162.16,162.12,3.55]
[1752457017762,3.33,162.16,162.13,3.55]
[1752457018463,3.33,162.16,162.13,9.7151]
[1752457018659,3.33,162.16,162.13,3.55]
[1752457018864,3.33,162.16,162.1,138.48033539]
[1752457019061,3.33,162.16,162.12,9.7153]
[1752457019062,3.33,162.15,162.12,9.7153]
[1752457019257,3.33,162.14,162.12,3.55]
[1752457019457,3.33,162.14,162.13,3.55]
[1752457019961,3.33,162.19,162.14,3.55]
[1752457020162,3.33,162.19,162.13,3.55]
[1752457020554,3.57,162.23,162.15,3.36]
[1752457020755,3.57,162.23,162.17,3.36]
[1752457021064,3.57,162.22,162.19,9.5226]
[1752457021262,3.57,162.21,162.18,5.02049668]
[1752457021463,3.57,162.23,162.2,3.36]
[1752457021766,5.17140446,162.27,162.2,3.36]
[1752457022058,3.57,162.26,162.2,3.36]
[1752457022468,3.57,162.23,162.2,9.5224]
[1752457022868,9.7313,162.23,162.2,9.5224]
[1752457023067,3.57,162.21,162.2,9.5224]
[1752457023371,5.02049668,162.28,162.21,3.36]
[1752457023372,3.57,162.22,162.21,3.36]
[1752457023965,3.57,162.22,162.2,6.1624]
[1752457024170,3.57,162.21,162.2,9.5224]
[1752457024666,3.57,162.25,162.18,3.36]
[1752457024868,3.57,162.24,162.18,3.36]
[1752457025065,6.1616,162.23,162.19,6.1628]
[1752457025467,3.57,162.22,162.19,6.1628]
[1752457025665,3.57,162.21,162.19,6.1628]
[1752457025866,3.57,162.2,162.19,6.1628]
[1752457026065,3.57,162.2,162.15,5.02049668]
[1752457026267,3.57,162.2,162.16,3.36]
[1752457026469,3.57,162.23,162.16,3.36]
[1752457026665,10.19190114,162.24,162.18,6.1631]
[1752457026666,3.57,162.21,162.18,6.1631]
[1752457026873,3.57,162.21,162.18,9.5231]
[1752457027370,9.7324,162.21,162.17,6.1634]
[1752457027564,3.57,162.2,162.17,6.1634]
[1752457027765,3.57,162.2,162.17,9.5234]
[1752457028269,10.19190114,162.24,162.18,6.1631]
[1752457028471,3.57,162.23,162.18,6.1631]
[1752457029075,3.57,162.2,162.17,9.5235]
[1752457029281,3.57,162.19,162.16,3.36]
[1752457030178,3.57,162.19,162.18,9.5228]
[1752457031974,5.17140446,162.24,162.18,9.5228]
[1752457031975,3.57,162.21,162.18,3.36]
[1752457032173,3.57,162.23,162.18,3.36]
[1752457032369,3.57,162.22,162.2,3.36]
[1752457032682,3.57,162.22,162.21,9.5221]
[1752457032882,3.57,162.27,162.22,3.36]
[1752457033080,3.57,162.27,162.24,3.36]
[1752457033675,3.57,162.27,162.26,3.36]
[1752457035682,6.1592,162.29,162.26,9.5201]
[1752457035882,3.57,162.27,162.26,9.5201]
[1752457036082,3.57,162.27,162.26,3.36]
[1752457036284,3.57,162.27,162.25,9.5204]
[1752457036478,3.57,162.26,162.25,9.5204]
[1752457036877,3.57,162.26,162.23,3.36]
[1752457037080,5.17140446,162.3,162.23,3.36]
[1752457037279,3.57,162.25,162.23,6.1613]
[1752457037476,10.18623429,162.31,162.23,3.36]
[1752457037684,10.18623429,162.31,162.22,5.01482983]
[1752457037685,3.57,162.24,162.22,5.01482983]
[1752457037985,3.57,162.23,162.22,8.37482983]
[1752457038389,6.1604,162.26,162.23,6.1612]
[1752457038583,3.57,162.25,162.24,3.36]
[1752457039784,3.57,162.25,162.24,9.5209]
[1752457040593,3.57,162.25,162.22,8.37193529]
[1752457040889,3.57,162.24,162.23,3.36]
[1752457041390,3.57,162.24,162.23,9.5213]
[1752457041589,3.57,162.24,162.18,6.36729165]
[1752457041793,3.57,162.24,162.18,3.00729165]
[1752457041991,3.57,162.21,162.2,9.5224]
[1752457042290,3.57,162.21,162.2,3.36]
[1752457043093,5.0148769,162.27,162.17,5.0148769]
[1752457043286,3.57,162.24,162.17,6.1635]
[1752457043588,3.57,162.24,162.16,3.36]
[1752457043787,6.1627,162.2,162.16,9.5237]
[1752457043992,3.57,162.19,162.16,9.5237]
[1752457044393,6.1627,162.2,162.17,6.1636]
[1752457044394,3.57,162.18,162.17,6.1636]
[1752457045091,3.57,162.18,162.17,9.5236]
[1752457046994,9.7327,162.2,162.17,6.1636]
[1752457047296,3.57,162.19,162.18,3.36]
[1752457047485,5.16022951,162.25,162.18,3.36]
[1752457047685,3.57,162.21,162.19,3.36]
[1752457047891,3.57,162.2,162.19,3.36]
[1752457048184,3.57,162.19,162.18,9.5229]
[1752457050094,3.57,162.2,162.19,3.36]
[1752457050898,3.57,162.2,162.19,3.41]
[1752457051091,3.53,162.24,162.19,3.41]
[1752457051489,3.53,162.24,162.2,3.41]
[1752457051890,6.1615,162.23,162.2,3.41]
[1752457052295,3.53,162.21,162.2,3.41]
[1752457052495,9.6921,162.21,162.18,6.1631]
[1752457052697,3.53,162.2,162.19,3.41]
[1752457052996,3.53,162.2,162.19,9.5728]
[1752457053192,3.53,162.25,162.19,3.41]
[1752457053698,3.53,162.25,162.2,3.41]
[1752457054800,3.53,162.24,162.22,6.1616]
[1752457055100,3.53,162.24,162.22,9.5716]
[1752457055292,3.53,162.26,162.21,5.01369541]
[1752457055497,3.53,162.26,162.25,3.41]
[1752457056498,3.53,162.25,162.23,8.42369541]
[1752457056895,3.53,162.25,162.23,5.01369541]
[1752457057199,3.53,162.25,162.24,3.41]
[1752457057700,3.53,162.25,162.12,22.6442606]
[1752457057701,3.53,162.24,162.22,3.41]
[1752457057901,3.53,162.23,162.22,3.41]
[1752457059106,3.53,162.23,162.22,9.5716]
[1752457060809,3.53,162.23,162.22,3.41]
[1752457061106,3.53,162.23,162.2,8.42274288]
[1752457061409,3.53,162.22,162.2,14.58514288]
[1752457061608,3.53,162.21,162.2,14.58514288]
[1752457061999,3.53,162.2,162.19,3.41]
[1752457062302,3.53,162.25,162.17,3.41]
[1752457062706,3.53,162.19,162.18,3.41]
[1752457062904,3.53,162.19,162.17,3.41]
[1752457063104,3.53,162.19,162.18,3.41]
[1752457063300,3.53,162.19,162.17,6.1634]
[1752457063501,3.53,162.19,162.16,8.42274288]
[1752457063909,3.53,162.18,162.17,3.41]
[1752457064606,3.53,162.19,162.18,3.41]
[1752457065903,3.53,162.19,162.17,9.17267516]
[1752457066108,3.53,162.18,162.17,12.58267516]
[1752457066407,3.53,162.18,162.15,6.41937516]
[1752457067107,5.16022951,162.22,162.15,6.41937516]
[1752457067108,3.53,162.16,162.15,6.41937516]
[1752457067611,3.53,162.16,162.15,3.00937516]
[1752457067806,3.53,162.16,162.13,6.41937516]
[1752457068406,3.53,162.15,162.13,12.58427516]
[1752457068704,6.1647,162.15,162.11,12.58517516]
[1752457068903,3.53,162.18,162.11,6.41937516]
[1752457070109,6.1646,162.15,162.11,12.58507516]
[1752457070313,3.53,162.13,162.12,3.41]
[1752457070505,8.16960467,162.19,162.12,3.41]
[1752457070710,3.53,162.17,162.15,3.41]
[1752457070912,3.53,162.16,162.15,3.41]
[1752457071405,3.53,162.16,162.15,9.5743]
[1752457073111,6.1633,162.18,162.17,3.41]
[1752457073112,3.53,162.18,162.17,3.41]
[1752457073309,3.53,162.17,162.16,3.41]
[1752457073505,3.53,162.17,162.15,3.00937516]
[1752457073711,3.53,162.16,162.15,6.41937516]
[1752457074214,3.53,162.16,162.13,3.41]
[1752457074413,3.53,162.16,162.12,3.41]
[1752457074714,6.1646,162.15,162.12,3.41]
[1752457074906,3.53,162.13,162.12,3.41]
[1752457077011,3.53,162.2,162.12,3.41]
[1752457077317,3.53,162.2,162.15,3.41]
[1752457078817,6.1637,162.17,162.15,3.41]
[1752457079014,3.53,162.16,162.15,3.41]
[1752457079313,6.1633,162.18,162.15,3.41]
[1752457079517,3.53,162.18,162.16,3.41]
[1752457079722,3.53,162.18,162.17,3.41]
[1752457080617,3.62,162.19,162.18,3.46]
[1752457080813,3.62,162.21,162.19,3.46]
[1752457081010,3.62,162.24,162.21,3.46]
[1752457081214,3.62,162.26,162.23,3.00937516]
[1752457081419,3.62,162.26,162.25,3.46]
[1752457081720,6.1607,162.25,162.23,3.00937516]
[1752457081923,3.62,162.24,162.23,6.46937516]
[1752457082518,5.16022951,162.3,162.23,6.46937516]
[1752457082519,3.62,162.25,162.24,3.46]
[1752457083622,3.62,162.25,162.24,9.6209]
[1752457083817,3.62,162.27,162.24,3.46]
[1752457084121,8.78022951,162.3,162.23,3.00937516]
[1752457084313,6.1605,162.26,162.23,3.00937516]
[1752457084509,3.62,162.25,162.23,6.46937516]
[1752457084816,3.62,162.24,162.21,3.00937516]
[1752457085023,3.62,162.27,162.21,3.00937516]
[1752457085326,6.1609,162.24,162.21,9.17137516]
[1752457085521,3.62,162.23,162.22,3.46]
[1752457085824,3.62,162.23,162.21,9.17137516]
[1752457085825,3.62,162.23,162.21,3.00937516]
[1752457086119,8.16960467,162.28,162.21,6.46937516]
[1752457086120,3.62,162.24,162.21,6.46937516]
[1752457086320,3.62,162.23,162.22,3.46]
[1752457087523,3.62,162.22,162.21,6.46937516]
[1752457089713,3.62,162.24,162.21,12.63107516]
[1752457089914,5.16022951,162.3,162.23,3.00937516]
[1752457090215,3.62,162.26,162.25,6.46937516]
[1752457092725,3.62,162.27,162.26,3.46]
[1752457092927,5.16558948,162.31,162.25,3.00937516]
[1752457093125,3.62,162.28,162.27,3.46]
[1752457094221,3.62,162.27,162.26,3.46]
[1752457097933,3.62,162.27,162.26,9.6202]
[1752457098627,3.62,162.28,162.27,3.46]
[1752457100633,3.62,162.28,162.27,6.46937516]
[1752457102333,3.62,162.28,162.27,3.46]
[1752457102933,3.62,162.28,162.27,9.6198]
[1752457103231,3.62,162.28,162.27,3.46]
[1752457103432,3.62,162.28,162.25,3.00937516]
[1752457103733,187.05496464,162.35,162.25,3.00937516]
[1752457103734,3.62,162.27,162.26,3.46]
[1752457104233,3.62,162.28,162.27,3.46]
[1752457104631,3.62,162.28,162.27,9.6198]
[1752457105537,3.62,162.28,162.27,3.46]
[1752457105735,3.62,162.28,162.25,6.46937516]
[1752457106538,6.1596,162.28,162.25,12.62967516]
[1752457106840,3.62,162.26,162.25,12.62967516]
[1752457107136,3.62,162.26,162.25,3.00937516]
[1752457107335,3.62,162.26,162.25,6.46937516]
[1752457109241,3.62,162.26,162.25,3.46]
[1752457110540,3.00937516,162.33,162.25,3.46]
[1752457110845,3.36,162.32,162.27,3.43]
[1752457111235,6.1592,162.29,162.27,3.43]
[1752457111436,3.36,162.28,162.27,3.43]
[1752457111642,3.36,162.32,162.27,3.43]
[1752457111835,6.1589,162.3,162.28,6.43937516]
[1752457112043,3.36,162.29,162.28,6.43937516]
[1752457112841,3.36,162.29,162.28,12.59877516]
[1752457113040,3.36,162.3,162.29,3.43]
[1752457115140,9.5186,162.3,162.29,3.43]
[1752457115340,3.36,162.3,162.28,3.00937516]
[1752457115846,9.5188,162.3,162.28,3.00937516]
[1752457116143,3.36,162.29,162.28,6.43937516]
[1752457116545,9.519,162.29,162.28,6.43937516]
[1752457116744,6.159,162.29,162.28,3.00937516]
[1752457117040,9.519,162.29,162.26,12.59937516]
[1752457117237,3.36,162.27,162.26,9.16937516]
[1752457117846,3.36,162.27,162.26,12.59937516]
[1752457119648,3.36,162.27,162.26,3.43]
[1752457119849,3.36,162.27,162.25,3.00937516]
[1752457120049,9.52,162.27,162.24,9.17017516]
[1752457120350,3.36,162.26,162.25,3.43]
[1752457121750,9.5196,162.28,162.25,6.1603]
[1752457121945,9.5196,162.28,162.26,3.00937516]
[1752457122147,9.5196,162.28,162.27,3.43]
[1752457123142,3.36,162.29,162.28,9.5892]
[1752457123346,3.36,162.29,162.28,3.43]
[1752457123751,3.36,162.29,162.28,9.5894]
[1752457124748,3.36,162.29,162.27,3.00559056]
[1752457124749,3.36,162.3,162.29,6.159]
[1752457124949,3.36,162.3,162.29,9.589]
[1752457125150,3.36,162.3,162.29,3.43]
[1752457128453,3.36,162.3,162.29,9.589]
[1752457128642,3.36,162.31,162.3,3.43]
[1752457129252,3.36,162.33,162.31,3.43]
[1752457129450,5.16558948,162.35,162.33,3.43]
[1752457129652,5.16558948,162.35,162.34,3.00559056]
[1752457129847,8.52558948,162.36,162.35,9.5868]
[1752457130052,3.36,162.36,162.35,3.43]
[1752457130448,3.36,162.35,162.34,6.43559056]
[1752457131047,3.36,162.35,162.32,6.43559056]
[1752457131549,3.36,162.33,162.3,6.43559056]
[1752457131751,3.36,162.32,162.31,3.43]
[1752457132146,3.36,162.33,162.31,3.43]
[1752457132551,3.36,162.33,162.32,3.43]
[1752457132751,9.5179,162.32,162.31,3.00405934]
[1752457133055,3.36,162.32,162.29,3.43]
[1752457133251,3.36,162.3,162.29,3.43]
[1752457133854,9.5186,162.3,162.29,3.43]
[1752457135453,6.1584,162.31,162.29,3.43]
[1752457135646,9.5184,162.31,162.3,3.43]
[1752457135850,8.52558948,162.35,162.31,3.43]
[1752457136046,9.5169,162.35,162.32,3.00351574]
[1752457136249,5.16558948,162.36,162.34,3.43]
[1752457136555,3.36,162.36,162.24,9.8792228]
[1752457136758,3.36,162.36,162.32,3.00351574]
[1752457137054,3.36,162.35,162.34,3.43]
[1752457137260,9.517,162.35,162.34,3.43]
[1752457137555,3.36,162.36,162.35,3.43]
[1752457137756,9.5164,162.36,162.35,3.43]
[1752457138661,3.36,162.39,162.34,3.00351574]
[1752457138956,3.36,162.39,162.35,3.43]
[1752457139257,3.36,162.38,162.37,3.43]
[1752457140657,3.46,162.38,162.35,3.53]
[1752457140857,3.46,162.38,162.36,3.53]
[1752457141060,5.16558948,162.42,162.34,9.16061574]
[1752457141061,6.1568,162.35,162.34,3.00297937]
[1752457141259,3.46,162.34,162.33,3.53]
[1752457141455,3.46,162.33,162.31,3.53]
[1752457141758,3.46,162.31,162.28,535.10297937]
[1752457141955,3.46,162.34,162.28,6.53297937]
[1752457142160,3.46,162.34,162.28,3.00297937]
[1752457142463,3.46,162.32,162.31,3.53]
[1752457142648,3.46,162.35,162.29,3.53]
[1752457143553,6.1581,162.32,162.29,3.53]
[1752457143755,3.46,162.31,162.3,3.53]
[1752457143955,6.1573,162.34,162.3,12.69137937]
[1752457144157,3.46,162.33,162.3,9.16137937]
[1752457144358,3.46,162.33,162.32,3.53]
[1752457145249,3.46,162.35,162.32,3.00297937]
[1752457145453,3.46,162.34,162.33,3.53]
[1752457145758,9.6172,162.34,162.33,3.53]
[1752457145958,3.46,162.38,162.34,3.53]
[1752457146159,3.46,162.38,162.32,6.53297937]
[1752457146362,3.46,162.38,162.33,3.53]
[1752457147558,3.46,162.35,162.34,3.53]
[1752457147752,3.46,162.35,162.32,9.16077937]
[1752457147753,3.46,162.33,162.32,3.53]
[1752457149168,9.6169,162.35,162.32,6.1579]
[1752457149368,3.46,162.34,162.33,3.53]
[1752457150958,3.00297937,162.39,162.32,3.53]
[1752457151162,3.46,162.33,162.32,3.53]
[1752457152056,9.6168,162.35,162.32,6.1579]
[1752457152261,9.6168,162.35,162.34,3.53]
[1752457153163,3.46,162.35,162.34,3.53]
[1752457153563,3.46,162.35,162.32,3.53]
[1752457153766,3.46,162.35,162.31,3.00297937]
[1752457153966,3.46,162.34,162.33,3.53]
[1752457154466,3.46,162.34,162.33,9.6875]
[1752457155468,3.46,162.34,162.33,3.53]
[1752457156463,9.6171,162.34,162.32,3.00297937]
[1752457156767,3.46,162.32,162.31,3.53]
[1752457157466,3.46,162.32,162.31,9.688]
[1752457157662,3.46,162.32,162.3,6.53297937]
[1752457158067,3.46,162.31,162.3,6.53297937]
[1752457159167,3.46,162.33,162.31,3.53]
[1752457159369,3.46,162.38,162.31,3.53]
[1752457159761,3.46,162.38,162.32,3.53]
[1752457160262,6.1572,162.34,162.32,3.53]
[1752457160467,3.46,162.33,162.32,3.53]
[1752457162177,9.6176,162.33,162.31,9.6881]
[1752457162367,3.46,162.32,162.3,6.53297937]
[1752457162567,3.00297937,162.37,162.3,6.53297937]
[1752457162764,3.46,162.31,162.3,6.53297937]
[1752457162973,3.46,162.36,162.3,3.00297937]
[1752457163273,3.46,162.33,162.32,3.53]
[1752457163474,3.46,162.32,162.31,9.688]
[1752457164670,3.46,162.36,162.32,3.53]
[1752457164871,3.46,162.33,162.32,3.53]
[1752457165968,5.17165257,162.39,162.33,3.53]
[1752457166165,5.17165257,162.4,162.33,3.53]
[1752457166370,3.46,162.39,162.38,3.53]
[1752457167073,3.46,162.38,162.37,6.1559]
[1752457167272,3.46,162.4,162.35,3.0039747]
[1752457167473,3.46,162.4,162.36,6.1564]
[1752457167775,6.1555,162.39,162.36,6.1564]
[1752457167974,3.46,162.38,162.35,12.6906747]
[1752457168678,3.46,162.37,162.36,6.1564]
[1752457170075,3.46,162.37,162.36,9.6864]
[1752457170472,3.46,162.37,162.36,9.7164]
[1752457172785,3.46,162.37,162.35,12.7205747]
[1752457172982,3.46,162.37,162.33,6.56303187]
[1752457173183,3.48,162.35,162.33,6.56303187]
[1752457173382,3.48,162.35,162.33,9.16043187]
[1752457173586,3.48,162.35,162.32,3.56]
[1752457173883,3.48,162.35,162.26,178.68]
[1752457173884,3.48,162.35,162.29,3.56]
[1752457174085,3.48,162.35,162.29,6.56303187]
[1752457174479,3.48,162.34,162.27,3.56]
[1752457174682,3.48,162.34,162.28,3.56]
[1752457175188,3.48,162.33,162.29,3.56]
[1752457176086,3.48,162.3,162.29,9.7187]
[1752457178387,6.1585,162.31,162.28,9.7193]
[1752457178587,3.48,162.29,162.28,9.7193]
[1752457178984,3.48,162.31,162.29,6.1589]
[1752457179189,3.48,162.31,162.3,3.56]
[1752457180186,3.48,162.31,162.3,9.7186]
[1752457180387,3.48,162.31,162.3,3.56]
[1752457180588,5.17165257,162.36,162.3,3.56]
[1752457180789,3.48,162.32,162.31,3.56]
[1752457182492,3.48,162.32,162.31,9.7183]
[1752457182695,3.48,162.32,162.31,3.56]
[1752457183992,3.48,162.32,162.3,3.56]
[1752457184189,3.48,162.32,162.28,3.56]
[1752457184487,3.48,162.31,162.29,3.56]
[1752457184990,9.6383,162.31,162.29,3.56]
[1752457185186,3.48,162.3,162.29,3.56]
[1752457186889,9.6386,162.3,162.28,3.00303187]
[1752457187096,3.48,162.29,162.28,6.56303187]
[1752457187489,3.48,162.29,162.27,6.1596]
[1752457187698,3.48,162.26,162.25,6.56303187]
[1752457188091,3.48,162.31,162.26,3.56]
[1752457188291,3.00303187,162.32,162.26,9.72]
[1752457188292,6.1593,162.29,162.26,9.72]
[1752457188491,3.48,162.31,162.26,3.56]
[1752457188695,3.48,162.31,162.27,3.56]
[1752457188897,3.48,162.28,162.27,3.56]
[1752457193000,3.00303187,162.32,162.25,3.56]
[1752457193001,3.48,162.27,162.25,3.56]
[1752457193202,3.48,162.27,162.24,3.56]
[1752457193795,9.64,162.27,162.24,9.7207]
[1752457194096,3.48,162.31,162.25,3.56]
[1752457195300,3.48,162.28,162.26,9.72]
[1752457195603,3.48,162.27,162.26,9.72]
[1752457196003,3.48,162.28,162.27,3.56]